bitfinex/quotes_ETHUSD_20250529
["timestamp","ask_amount","ask_price","bid_price","bid_amount"]
[1748532078788,0.35150016,2661.8,2661.7,3.7569974]
[1748532083195,0.35150016,2661.8,2661.7,4.80404139]
[1748532083397,7.85,2662.8,2662.0,3.756574]
[1748532083398,1.0417,2662.7,2662.0,3.756574]
[1748532083624,1.0417,2662.7,2662.4,3.75589296]
[1748532083829,1.0417,2662.7,2662.3,3.75608022]
[1748532084041,1.0417,2662.7,2662.2,3.75629178]
[1748532084224,5.0317,2662.9,2662.3,0.5167714]
[1748532084426,5.0317,2662.9,2662.3,3.75611768]
[1748532084634,0.02,2662.9,2662.8,3.75544539]
[1748532084800,0.02,2662.9,2662.5,1.8810286]
[1748532084999,0.02,2662.9,2662.8,3.75544539]
[1748532085242,0.02,2662.9,2662.8,4.13355656]
[1748532086338,0.02,2662.9,2662.8,5.96466889]
[1748532086898,0.02,2663.9,2663.8,3.75403558]
[1748532087437,0.02,2663.9,2663.6,1.8810286]
[1748532087438,0.02,2663.9,2663.6,3.75427107]
[1748532087613,0.02,2663.9,2663.6,3.75425048]
[1748532087815,0.02,2663.9,2663.5,3.75445841]
[1748532088029,0.02,2663.9,2663.4,1.0957]
[1748532088406,0.02,2663.9,2663.6,3.75424232]
[1748532088640,0.02,2663.9,2663.4,1.0957]
[1748532088641,0.02,2663.9,2663.4,4.85028438]
[1748532088837,0.02,2663.9,2663.8,3.75403558]
[1748532089203,0.02,2663.9,2663.7,3.75417126]
[1748532089411,0.02,2663.9,2663.8,3.75403558]
[1748532092737,0.02,2663.9,2663.7,3.75411912]
[1748532092940,0.02,2663.9,2663.8,3.75403558]
[1748532093328,0.02,2663.9,2663.7,3.75415668]
[1748532093329,0.02,2663.9,2663.7,3.75417383]
[1748532093640,0.02,2663.9,2663.8,3.75403558]
[1748532094104,0.02,2663.9,2663.7,3.75413497]
[1748532094310,0.02,2663.9,2663.6,3.75429091]
[1748532094599,0.02,2663.9,2663.2,3.75480785]
[1748532094839,0.9948,2663.8,2662.8,3.68353575]
[1748532095103,0.9948,2663.8,2663.2,3.75487958]
[1748532095499,0.9948,2663.8,2663.0,3.75516283]
[1748532095500,0.9948,2663.8,2663.3,3.75471582]
[1748532095702,3.967,2663.7,2663.3,3.75471582]
[1748532095944,3.967,2663.7,2663.2,3.75481255]
[1748532096276,3.967,2663.7,2663.2,3.75474491]
[1748532096441,4.46518,2663.7,2663.0,3.75507974]
[1748532096845,4.46518,2663.7,2662.8,0.37811117]
[1748532096846,1.0504,2663.6,2662.8,0.37811117]
[1748532097042,1.0504,2663.6,2663.0,3.75515446]
[1748532097256,4.30474035,2663.3,2661.1,0.02]
[1748532097456,3.7557997,2662.6,2661.2,0.40871158]
[1748532097674,1.0797,2662.3,2661.2,0.37168373]
[1748532097824,1.67556877,2662.3,2661.3,4.17243819]
[1748532098166,1.67556877,2662.3,2661.3,0.41494944]
[1748532098348,1.67556877,2662.3,2661.4,3.75739472]
[1748532098522,1.67556877,2662.3,2661.3,4.17246187]
[1748532098721,1.67556877,2662.3,2661.3,0.41494944]
[1748532099032,1.67556877,2662.3,2661.1,0.02]
[1748532099033,1.018,2662.1,2661.2,3.7576589]
[1748532099235,1.018,2662.1,2661.1,0.02]
[1748532099434,1.018,2662.1,2661.1,1.89739573]
[1748532099623,3.971,2662.0,2661.3,3.75756209]
[1748532099821,3.971,2662.0,2661.2,3.75770329]
[1748532099822,3.971,2662.0,2661.4,3.75733803]
[1748532100657,3.971,2662.0,2661.5,3.75727672]
[1748532101064,1.018,2662.1,2661.5,0.75148116]
[1748532101222,1.018,2662.1,2661.7,3.75691491]
[1748532101427,1.018,2662.1,2661.7,3.75691428]
[1748532102176,1.018,2662.1,2661.7,3.75695633]
[1748532102679,1.018,2662.1,2661.5,5.63463175]
[1748532102966,1.018,2662.1,2661.6,3.75704672]
[1748532103455,1.018,2662.1,2661.7,3.75697489]
[1748532103625,0.8,2661.9,2661.6,0.93916785]
[1748532104170,0.8,2661.9,2661.6,4.69626809]
[1748532104350,0.8,2661.9,2661.6,0.93916785]
[1748532105069,0.8,2661.9,2661.6,4.6962407]
[1748532105493,0.8,2661.9,2661.6,0.93916785]
[1748532105782,0.8,2661.9,2661.6,3.75712413]
[1748532105958,0.8,2661.9,2661.7,3.75697677]
[1748532106159,0.8,2661.9,2661.6,3.75707257]
[1748532107283,0.8,2661.9,2661.4,3.7573672]
[1748532107503,0.8,2661.9,2661.5,3.7572793]
[1748532107973,0.8,2661.9,2661.5,3.75727775]
[1748532109088,0.8,2661.9,2661.6,3.75704686]
[1748532109293,0.8,2661.9,2661.7,3.75687501]
[1748532109590,0.8,2661.9,2661.5,3.7572048]
[1748532109808,0.8,2661.9,2661.6,3.75699942]
[1748532109957,0.8,2661.9,2661.5,3.75719118]
[1748532110157,0.8,2661.9,2661.6,3.75707717]
[1748532110748,0.8,2661.9,2661.7,3.7569911]
[1748532111003,0.8,2661.9,2661.2,1.45189109]
[1748532111207,0.8,2661.9,2661.3,0.94718911]
[1748532111371,0.8,2661.9,2661.8,3.75685626]
[1748532111953,1.042,2662.7,2662.6,3.75572748]
[1748532112168,1.042,2663.7,2663.6,3.75431746]
[1748532112380,5.011,2663.7,2662.7,3.75558643]
[1748532112590,1.042,2663.7,2663.6,3.75431746]
[1748532112903,1.042,2663.7,2663.4,3.75459938]
[1748532113107,1.042,2663.7,2663.3,3.75468814]
[1748532113287,1.042,2663.7,2663.0,1.4629342]
[1748532113288,1.042,2663.7,2663.4,3.75459504]
[1748532113603,1.042,2663.7,2663.0,7.09801055]
[1748532113769,1.042,2663.7,2663.0,7.01014776]
[1748532113964,1.042,2663.7,2663.4,3.75449162]
[1748532114769,1.042,2663.7,2663.4,3.75459476]
[1748532114972,1.042,2663.7,2661.8,3.75683694]
[1748532115204,1.0996,2663.4,2662.7,3.75549916]
[1748532115376,3.992,2663.3,2662.6,3.75562163]
[1748532115585,3.992,2663.3,2662.8,3.7553743]
[1748532115586,4.50116,2663.3,2662.8,3.7553743]
[1748532115792,4.50116,2663.3,2662.6,3.75562163]
[1748532115999,3.992,2663.3,2662.4,8.0]
[1748532116193,3.992,2663.3,2662.9,3.75517305]
[1748532116393,3.992,2663.3,2663.0,3.75515341]
[1748532116596,3.992,2663.3,2662.8,3.75536163]
[1748532116797,3.992,2663.3,2662.3,5.98581164]
[1748532116798,3.992,2663.3,2662.7,3.75551161]
[1748532117095,0.50916,2663.2,2662.8,3.75544477]
[1748532117380,0.50916,2663.2,2662.8,3.75532373]
[1748532117569,0.50916,2663.2,2662.7,3.75551852]
[1748532118079,0.50916,2663.2,2662.8,3.75541066]
[1748532118283,0.50916,2663.2,2662.7,3.75556189]
[1748532118495,0.50916,2663.2,2662.8,3.75538633]
[1748532118692,0.50916,2663.2,2662.9,3.75527484]
[1748532119411,3.992,2663.3,2662.9,3.75527484]
[1748532119703,3.992,2663.3,2662.8,3.75540398]
[1748532119865,3.992,2663.3,2662.7,3.75544781]
[1748532120070,3.992,2663.3,2662.4,8.0]
[1748532120267,3.992,2663.3,2662.7,3.7554478]
[1748532120514,0.50916,2663.2,2662.3,1.87792438]
[1748532120697,1.0677,2663.1,2662.0,0.36084913]
[1748532120883,1.0677,2663.1,2661.9,2.0781]
[1748532120884,1.0677,2663.1,2662.2,3.75617008]
[1748532121182,1.0677,2663.1,2661.9,1.0041]
[1748532121382,1.0677,2663.1,2662.1,3.75635778]
[1748532121584,1.0677,2663.1,2661.8,3.75684474]
[1748532121819,1.0043,2662.9,2662.0,3.7564974]
[1748532122113,0.55,2663.0,2661.3,5.89664782]
[1748532122114,0.55,2662.8,2661.3,5.89664782]
[1748532122414,0.55,2662.5,2661.6,3.75703098]
[1748532122573,1.0567,2662.4,2661.6,3.75703098]
[1748532122896,1.0567,2662.4,2661.4,8.0]
[1748532123071,1.0567,2662.4,2662.0,3.75646054]
[1748532123278,3.982,2662.3,2661.3,6.25994308]
[1748532123475,3.982,2662.3,2661.8,3.75678555]
[1748532123674,3.982,2662.3,2661.8,3.75675306]
[1748532123913,3.982,2662.3,2661.7,3.75692217]
[1748532124500,4.48587,2662.3,2661.3,6.26002554]
[1748532124704,4.48587,2662.3,2661.3,5.18702554]
[1748532125000,4.48587,2662.3,2661.7,3.75698456]
[1748532125200,4.48587,2662.3,2661.7,3.75696322]
[1748532125717,4.48587,2662.3,2661.2,4.14069796]
[1748532125718,1.0396,2662.2,2661.2,4.14069796]
[1748532125890,1.0814,2662.0,2661.3,3.75746961]
[1748532126101,1.0814,2662.0,2661.2,4.14067857]
[1748532126418,1.0814,2662.0,2661.2,0.38309109]
[1748532126581,1.0814,2662.0,2661.3,3.7574816]
[1748532126777,1.0814,2662.0,2661.2,3.75765223]
[1748532127095,1.0814,2662.0,2661.2,4.14075081]
[1748532127491,1.0624,2661.8,2661.2,0.38309858]
[1748532127719,1.0624,2661.8,2661.1,0.02]
[1748532127916,1.0624,2661.8,2661.2,3.75770273]
[1748532128214,1.0624,2661.8,2661.1,3.77778593]
[1748532128592,0.55,2661.9,2661.1,0.02]
[1748532128593,0.55,2661.5,2661.1,0.02]
[1748532128791,1.6262,2661.2,2661.1,0.02]
[1748532129008,2.7249846,2661.2,2661.1,0.02]
[1748532129615,2.1749846,2661.2,2661.1,0.02]
[1748532129821,1.0762,2661.2,2661.1,3.7778445]
[1748532130023,1.0058,2661.5,2661.1,0.02]
[1748532130574,1.0058,2661.5,2661.2,3.7576684]
[1748532131105,1.0058,2661.5,2661.1,3.77773748]
[1748532131821,1.0058,2661.5,2661.1,0.02]
[1748532132387,1.0058,2661.5,2661.2,3.75763663]
[1748532132588,1.0058,2661.5,2661.4,3.7574209]
[1748532132778,1.0058,2661.5,2661.1,4.15560125]
[1748532132982,1.0058,2661.5,2661.2,3.75763004]
[1748532133227,1.0058,2661.5,2661.1,0.02]
[1748532133526,1.50508,2661.5,2661.1,0.02]
[1748532134421,0.55,2661.2,2661.1,0.02]
[1748532134622,2.6607,2661.2,2661.1,0.02]
[1748532135238,13.38170329,2661.2,2660.1,0.02]
[1748532135425,1.0367,2660.7,2660.1,0.02]
[1748532135625,1.0367,2660.5,2660.1,0.02]
[1748532135933,0.50207,2660.4,2660.1,0.02]
[1748532136497,3.984,2660.3,2660.2,3.75911585]
[1748532136814,1.0367,2660.5,2660.1,3.7791787]
[1748532137299,1.0367,2660.5,2660.1,0.40022899]
[1748532137499,1.0367,2660.5,2660.4,3.75883325]
[1748532137732,5.0207,2660.5,2660.1,4.15937618]
[1748532138041,5.0207,2660.5,2660.1,0.40022899]
[1748532138228,5.52277,2660.5,2660.1,0.40022899]
[1748532139039,5.52277,2660.5,2659.6,3.71239678]
[1748532139199,5.52277,2660.5,2659.7,8.0]
[1748532139404,5.52277,2660.5,2660.0,3.75926344]
[1748532139735,3.98,2660.4,2660.1,3.75922635]
[1748532139940,1.0367,2660.5,2660.3,3.75889944]
[1748532140152,1.0367,2660.5,2660.4,3.75883325]
[1748532140312,5.0167,2660.5,2660.4,3.75883325]
[1748532140998,5.0167,2660.5,2660.3,3.75891124]
[1748532141421,5.0167,2660.5,2660.2,3.75902289]
[1748532141607,5.0167,2660.5,2660.3,3.75891462]
[1748532141811,5.0167,2660.5,2660.3,3.75887011]
[1748532142044,5.0167,2660.5,2660.4,3.75883325]
[1748532142399,5.0167,2660.5,2660.3,3.75889682]
[1748532142610,5.0167,2660.5,2660.3,4.13153727]
[1748532142815,5.0167,2660.5,2660.4,3.75883325]
[1748532142816,1.0367,2660.5,2660.4,3.75883325]
[1748532143064,1.0683,2661.2,2660.6,3.75849641]
[1748532143267,5.054,2661.1,2660.4,3.75879249]
[1748532143414,5.054,2661.1,2660.5,3.75855252]
[1748532143615,3.976,2661.0,2660.6,3.75845032]
[1748532143832,3.976,2661.0,2660.5,3.75862761]
[1748532144038,3.976,2661.0,2660.6,3.75851201]
[1748532144345,3.976,2661.0,2660.4,3.75877271]
[1748532144848,1.0683,2661.2,2660.9,3.75806298]
[1748532145033,3.974,2661.1,2660.5,3.75869197]
[1748532145343,3.974,2661.1,2660.7,3.75837304]
[1748532145911,3.974,2661.1,2660.6,3.75849036]
[1748532146111,3.974,2661.1,2660.6,3.75854619]
[1748532147024,1.0683,2661.2,2661.0,3.75797614]
[1748532147220,1.0864,2661.8,2660.9,3.75812694]
[1748532147476,1.0864,2661.8,2661.1,3.75781502]
[1748532147625,1.0864,2661.8,2660.9,1.8824542]
[1748532147821,1.0864,2661.8,2661.6,3.75705885]
[1748532148238,1.0864,2661.8,2661.5,3.75726939]
[1748532148436,1.0864,2661.8,2661.1,3.75782012]
[1748532148654,1.0864,2661.8,2661.5,3.75718331]
[1748532148857,1.0864,2661.8,2661.6,3.75712087]
[1748532149062,0.02,2661.9,2661.8,3.75685626]
[1748532150972,0.02,2661.9,2661.3,2.8862542]
[1748532151124,0.02,2661.9,2661.3,1.0038]
[1748532151323,0.02,2661.9,2661.2,0.37578201]
[1748532151324,1.0719,2661.8,2661.2,4.13343642]
[1748532151561,1.0719,2661.8,2661.4,3.75735682]
[1748532151744,1.0719,2661.8,2661.2,0.37578201]
[1748532151954,1.0719,2661.8,2661.6,3.75704715]
[1748532152161,1.0719,2661.8,2661.7,3.7569974]
[1748532152460,0.02,2661.9,2661.8,3.75685626]
[1748532152851,0.02,2661.9,2661.7,3.75694634]
[1748532154071,0.02,2661.9,2661.8,3.75685626]
[1748532154427,0.02,2661.9,2661.7,3.75692256]
[1748532154660,0.02,2661.9,2661.4,1.8824542]
[1748532154929,0.02,2661.9,2661.7,3.7569303]
[1748532155759,0.02,2661.9,2661.8,3.75685626]
[1748532156278,0.02,2661.9,2661.6,3.75708144]
[1748532156483,0.02,2661.9,2661.4,3.75736044]
[1748532156774,0.02,2661.9,2661.2,3.75764107]
[1748532156985,0.02,2661.9,2661.1,3.75775799]
[1748532157187,0.02,2661.9,2661.5,3.75719375]
[1748532157781,0.02,2661.9,2661.6,3.75706319]
[1748532158877,3.99,2661.9,2661.6,3.75701595]
[1748532159735,0.02,2661.9,2661.1,1.0261]
[1748532159970,0.02,2661.9,2661.4,1.8824542]
[1748532160177,0.02,2661.9,2661.8,3.75685626]
[1748532160335,0.02,2661.9,2661.6,3.7571164]
[1748532160536,1.0497,2662.9,2661.9,1.0261]
[1748532160775,1.0497,2662.9,2662.5,3.75582726]
[1748532161077,5.0197,2662.9,2662.4,3.75593367]
[1748532161504,5.0197,2662.9,2662.5,3.75586364]
[1748532161708,3.97,2662.8,2662.6,3.75572527]
[1748532162013,0.02,2662.9,2662.8,3.75544539]
[1748532163278,0.02,2662.9,2662.8,5.63789959]
[1748532164180,0.02,2662.9,2662.8,3.75544539]
[1748532164575,0.02,2662.9,2662.8,5.63789959]
[1748532166879,0.02,2662.9,2662.8,6.66019959]
[1748532167213,0.02,2662.9,2662.8,7.13864139]
[1748532168181,0.02,2662.9,2662.8,5.25618719]
[1748532171482,0.02,2662.9,2662.8,4.23388719]
[1748532171684,0.02,2662.9,2662.8,3.75544539]
[1748532171986,0.02,2662.9,2662.7,3.75558643]
[1748532172211,0.02,2662.9,2662.8,3.75544539]
[1748532176814,0.02,2662.9,2662.8,4.73134539]
[1748532178517,0.02,2662.9,2662.8,3.75544539]
[1748532179227,0.02,2662.9,2662.7,3.75550324]
[1748532179428,0.02,2662.9,2662.4,3.75594482]
[1748532179601,0.02,2662.9,2662.5,3.75580291]
[1748532180003,3.968,2662.8,2662.5,3.75580291]
[1748532180258,3.968,2662.8,2662.4,3.75594482]
[1748532180259,0.9726,2662.7,2662.4,3.75592233]
[1748532180543,0.9726,2662.7,2662.6,3.75572748]
[1748532180829,0.02,2662.9,2662.8,3.75544539]
[1748532187461,0.02,2662.9,2662.7,3.75552645]
[1748532188027,0.9821,2662.8,2662.5,3.75583482]
[1748532188337,4.9491,2662.8,2662.1,3.75643289]
[1748532188527,0.02,2662.9,2662.8,3.75544539]
[1748532190144,0.02,2662.9,2662.6,3.75566446]
[1748532190438,1.0095,2662.8,2662.4,3.75591575]
[1748532190824,1.0095,2662.8,2662.3,3.75601813]
[1748532191661,1.0095,2662.8,2662.1,3.75636895]
[1748532191863,0.9813,2662.6,2661.7,3.75693396]
[1748532192064,0.9813,2662.4,2661.8,3.75676939]
[1748532192234,0.9813,2662.2,2661.6,4.14152996]
[1748532192429,0.9813,2662.2,2661.7,3.75697821]
[1748532192786,0.9813,2662.2,2661.3,8.0]
[1748532192925,3.967,2662.1,2661.9,3.75664015]
[1748532193573,3.967,2662.1,2662.0,3.756574]
[1748532193777,3.967,2662.1,2661.9,3.75665957]
[1748532194893,3.967,2662.1,2661.8,3.75679814]
[1748532195100,1.049,2662.0,2661.5,0.37941182]
[1748532195246,1.049,2662.0,2661.7,3.75688778]
[1748532195598,1.5506,2662.0,2661.2,8.0]
[1748532195762,1.5506,2662.0,2661.5,3.75721078]
[1748532195959,1.5506,2662.0,2661.3,3.75756209]
[1748532196168,1.5506,2662.0,2661.5,3.75717359]
[1748532196844,3.968,2661.9,2661.5,3.75717359]
[1748532197292,3.968,2661.9,2661.1,2.8529542]
[1748532197293,3.968,2661.9,2661.1,6.61078243]
[1748532197498,3.968,2661.9,2661.5,3.7572451]
[1748532197700,1.049,2662.0,2661.1,2.8529542]
[1748532198019,3.968,2661.8,2661.5,3.75718339]
[1748532198553,3.968,2661.8,2661.6,3.75713471]
[1748532199093,3.968,2661.8,2661.5,3.75725111]
[1748532199248,3.968,2661.8,2661.4,3.75739427]
[1748532199449,3.968,2661.8,2661.3,4.12502069]
[1748532199651,1.0137,2661.7,2660.8,8.9981]
[1748532199872,1.0137,2661.7,2660.8,9.36441673]
[1748532200074,1.0137,2661.7,2661.1,3.7577535]
[1748532200288,1.0137,2661.7,2661.2,3.75765913]
[1748532200491,1.56204,2661.7,2661.2,3.75765913]
[1748532201009,1.56204,2661.7,2661.3,3.75744692]
[1748532201500,1.56204,2661.7,2660.9,3.75809879]
[1748532201501,1.56204,2661.7,2660.9,3.31839084]
[1748532201706,1.56204,2661.7,2661.3,3.75745878]
[1748532203020,1.56204,2661.7,2661.3,3.75749724]
[1748532203306,1.56204,2661.7,2661.3,3.75752572]
[1748532203482,1.56204,2661.7,2661.3,3.75755422]
[1748532203683,0.553004,2661.6,2660.9,3.75803524]
[1748532204009,1.0682,2661.5,2660.9,3.75803524]
[1748532204476,1.0682,2661.5,2661.0,3.75795155]
[1748532204781,1.0682,2661.5,2660.5,1.8824542]
[1748532204986,1.0682,2661.5,2661.0,3.75792454]
[1748532205318,1.0682,2661.5,2660.9,3.75807199]
[1748532205635,1.0682,2661.5,2661.0,3.75796286]
[1748532205782,1.0682,2661.5,2660.9,3.75807199]
[1748532206133,3.968,2661.4,2661.1,3.7578436]
[1748532206838,1.0193,2662.0,2661.3,1.8824542]
[1748532206995,3.968,2661.9,2661.5,3.7572014]
[1748532207196,1.0193,2662.0,2661.5,3.7572014]
[1748532207403,3.968,2661.9,2661.5,3.7572014]
[1748532207624,3.968,2661.9,2661.4,3.75739029]
[1748532207625,3.968,2661.9,2661.6,3.75711786]
[1748532207832,1.0193,2662.0,2661.6,3.75711786]
[1748532208150,3.968,2661.9,2661.7,3.75691362]
[1748532208333,3.968,2661.9,2661.6,3.75711786]
[1748532208531,1.0193,2662.0,2661.7,3.75687597]
[1748532208735,3.968,2661.9,2661.7,3.75687597]
[1748532209110,3.968,2661.9,2661.4,0.37938495]
[1748532209111,3.968,2661.9,2661.4,4.13675967]
[1748532209306,0.9871,2661.8,2660.8,0.9859]
[1748532209564,0.9871,2661.8,2661.1,3.75777599]
[1748532210010,0.9871,2661.8,2660.6,2.8683542]
[1748532210362,0.55,2661.5,2660.5,3.75861262]
[1748532210646,0.55,2661.5,2660.1,0.02]
[1748532210647,1.0382,2661.2,2660.3,3.75885422]
[1748532210847,1.0382,2661.0,2660.3,3.75885422]
[1748532211147,0.50062,2660.9,2660.4,3.75876388]
[1748532211348,0.50062,2660.9,2660.3,3.75884067]
[1748532211522,1.0683,2660.8,2660.2,3.75911047]
[1748532211741,1.0683,2660.8,2660.3,3.75895241]
[1748532212126,1.0683,2660.8,2660.1,0.39988427]
[1748532212682,1.0683,2660.8,2660.2,3.75898394]
[1748532212898,3.969,2660.7,2660.2,3.7590464]
[1748532213180,3.969,2660.6,2660.3,3.75883382]
[1748532213530,3.969,2660.6,2660.1,4.15908676]
[1748532213531,1.0472,2660.5,2660.1,4.1590469]
[1748532213874,1.0472,2660.5,2660.2,3.75910665]
[1748532214928,1.0472,2660.5,2660.3,3.75890964]
[1748532215178,1.0472,2660.5,2660.2,3.75911585]
[1748532215950,1.59537453,2660.5,2660.1,0.39988427]
[1748532216148,1.59537453,2660.5,2660.1,0.02]
[1748532216548,0.9919,2660.4,2660.1,0.02]
[1748532219482,3.969,2660.3,2660.1,0.02]
[1748532219692,0.49609,2660.2,2660.1,0.02]
[1748532219842,1.54129,2660.2,2660.1,0.02]
[1748532220693,0.46554529,2660.7,2660.1,0.02]
[1748532220694,3.969,2660.5,2660.3,3.75896713]
[1748532220899,1.0452,2660.6,2660.1,0.02]
[1748532220900,3.969,2660.4,2660.2,3.75904379]
[1748532221187,3.969,2660.4,2660.3,3.75897455]
[1748532221386,1.0452,2660.6,2660.1,0.02]
[1748532221568,1.0452,2660.6,2660.5,3.75869197]
[1748532221802,5.0142,2660.6,2660.5,3.75869197]
[1748532222372,1.074,2661.1,2660.5,3.75869197]
[1748532222701,1.0452,2661.0,2660.1,5.6615854]
[1748532223001,3.969,2660.9,2660.4,3.7587941]
[1748532223573,3.969,2660.8,2660.1,1.9024542]
[1748532223775,3.969,2660.8,2660.6,3.75846884]
[1748532223987,1.0452,2661.0,2660.7,3.75840944]
[1748532224175,1.0452,2661.0,2660.4,4.73130508]
[1748532224396,3.969,2661.0,2660.6,3.7585507]
[1748532224595,0.9708,2661.4,2661.2,3.7577017]
[1748532225221,0.9708,2661.4,2661.3,3.75756209]
[1748532225424,1.0179,2661.8,2660.9,1.0569]
[1748532225653,1.0179,2661.8,2661.2,3.75762612]
[1748532225936,1.0179,2661.6,2660.2,1.8824542]
[1748532226097,4.32700798,2661.7,2660.2,1.8824542]
[1748532226098,1.0305,2661.3,2660.2,1.8824542]
[1748532226417,1.0305,2661.1,2660.3,3.75889788]
[1748532226622,1.0305,2660.9,2660.3,3.75889788]
[1748532227218,1.0305,2660.9,2660.4,3.75879258]
[1748532227993,1.0305,2660.9,2660.3,3.75891298]
[1748532228504,1.0305,2660.9,2660.1,0.02]
[1748532228702,0.9883,2660.7,2660.1,3.7792269]
[1748532228901,0.63896384,2660.6,2660.1,3.7792269]
[1748532229288,0.63896384,2660.6,2660.1,0.02]
[1748532229749,1.0461,2660.5,2660.1,0.02]
[1748532229956,0.63896384,2660.6,2658.4,0.9931]
[1748532229957,1.0461,2659.8,2658.4,0.9931]
[1748532230236,1.0461,2659.6,2658.9,0.36880593]
[1748532230416,2.05207902,2659.5,2658.9,0.36880593]
[1748532230615,1.69365264,2659.5,2658.9,0.36880593]
[1748532231443,3.969,2659.4,2658.9,0.36880593]
[1748532232095,1.0271,2659.3,2658.9,0.36880593]
[1748532233847,1.0271,2659.3,2658.9,4.12963701]
[1748532234048,1.0271,2659.3,2659.0,3.76070198]
[1748532234218,3.969,2659.2,2658.9,4.12975247]
[1748532234409,5.0136,2659.2,2658.9,0.36880593]
[1748532234609,5.0136,2659.2,2658.9,4.12974473]
[1748532234808,5.0136,2659.2,2659.1,3.78059989]
[1748532234809,3.969,2659.2,2659.1,3.78059989]
[1748532235009,1.0446,2659.9,2659.2,3.760496]
[1748532235244,0.35769303,2659.8,2658.6,2.17799643]
[1748532235395,3.969,2659.8,2659.1,3.7606642]
[1748532235810,3.969,2659.8,2658.7,0.21779964]
[1748532236033,1.0446,2659.7,2659.0,3.76076077]
[1748532236422,1.028,2659.5,2658.6,0.37816325]
[1748532236624,1.028,2659.5,2658.6,3.76130571]
[1748532236863,1.028,2659.5,2658.5,3.76140718]
[1748532237574,1.028,2659.5,2658.3,3.76169536]
[1748532237781,1.028,2659.5,2658.5,3.76140879]
[1748532238349,1.0336,2659.3,2658.3,3.76180265]
[1748532238775,1.0336,2659.3,2658.2,0.4315]
[1748532238940,1.0336,2659.3,2658.7,3.76115295]
[1748532239138,3.97,2659.2,2658.7,3.76115295]
[1748532239355,3.97,2659.2,2658.8,3.76109463]
[1748532239356,0.60776,2659.2,2658.8,3.76109463]
[1748532239555,1.0336,2659.3,2658.8,3.76103185]
[1748532239772,3.97,2659.2,2658.9,3.76089538]
[1748532239988,3.97,2659.2,2658.9,0.36769681]
[1748532240150,3.97,2659.2,2658.8,3.76102953]
[1748532240354,3.97,2659.2,2652.8,28.45]
[1748532240355,1.50226,2659.1,2658.1,5.41655259]
[1748532240598,1.50226,2659.1,2658.1,2.02538118]
[1748532240875,1.50226,2659.1,2658.6,3.76130143]
[1748532241077,3.97,2659.0,2658.9,3.76092037]
[1748532241274,3.97,2659.0,2658.8,3.76096165]
[1748532241474,1.50226,2659.1,2659.0,3.76081233]
[1748532241475,1.0019,2659.1,2659.0,3.76081233]
[1748532241676,0.9816,2659.6,2659.1,3.76056386]
[1748532241863,3.97,2659.4,2659.1,3.76056386]
[1748532242063,3.97,2659.4,2659.0,3.76079329]
[1748532242376,3.97,2659.4,2658.9,3.76092586]
[1748532242878,0.9816,2659.3,2658.8,3.76096931]
[1748532243096,0.9816,2659.3,2658.9,3.7609334]
[1748532243281,1.47676,2659.3,2658.4,11.76163414]
[1748532243444,0.9816,2659.3,2658.8,3.76097582]
[1748532243644,0.9816,2659.3,2658.9,3.76093299]
[1748532244055,0.9816,2659.3,2659.0,3.76070192]
[1748532244260,0.9816,2659.3,2659.1,3.76065111]
[1748532244464,0.9816,2659.3,2658.9,3.76088742]
[1748532244676,3.97,2659.2,2659.0,3.76081233]
[1748532244879,0.9816,2659.3,2658.4,3.76166114]
[1748532245083,3.971,2659.1,2659.0,3.76081233]
[1748532245461,3.971,2659.2,2658.7,3.7611718]
[1748532245656,3.971,2659.2,2658.5,8.41931611]
[1748532245961,3.971,2659.2,2659.1,3.7606709]
[1748532246187,0.9816,2659.3,2659.1,3.7606709]
[1748532246384,3.971,2659.2,2659.1,3.7606709]
[1748532246593,0.9816,2659.3,2659.1,3.7606709]
[1748532246775,0.998,2659.7,2659.2,3.76042714]
[1748532246986,0.2072,2659.6,2659.2,3.76042714]
[1748532247187,3.971,2659.6,2659.2,3.76042714]
[1748532247478,0.998,2659.7,2658.8,4.14627252]
[1748532247479,0.998,2659.7,2659.3,3.76036611]
[1748532247676,0.55,2660.2,2659.0,1.88482146]
[1748532247677,0.9489,2660.2,2659.0,1.88482146]
[1748532247889,0.9489,2660.2,2659.8,3.75957947]
[1748532248090,0.9489,2660.2,2659.5,3.75996752]
[1748532248393,3.97,2660.1,2659.3,3.76038807]
[1748532248778,3.97,2660.1,2659.9,3.7595136]
[1748532249190,0.9489,2660.2,2659.9,4.12819763]
[1748532249400,8.48896384,2660.6,2659.9,4.12819763]
[1748532249401,0.9859,2660.5,2660.2,3.75910684]
[1748532249602,3.97,2660.4,2660.1,3.75917333]
[1748532249812,3.97,2660.3,2660.1,3.75917333]
[1748532249992,3.97,2660.2,2659.9,3.75953953]
[1748532250187,3.97,2660.2,2660.1,3.75925717]
[1748532250392,3.97,2660.2,2660.0,3.75931871]
[1748532250711,0.9859,2660.5,2659.7,0.3852]
[1748532250712,0.9859,2660.5,2660.2,3.75909789]
[1748532250911,0.9859,2660.5,2660.4,3.75883325]
[1748532251116,3.97,2660.5,2660.3,3.75896051]
[1748532251280,0.9859,2660.7,2660.4,3.75880666]
[1748532251482,3.97,2660.6,2660.4,3.75880666]
[1748532251682,0.9859,2660.7,2660.5,3.75869197]
[1748532252012,3.97,2660.6,2660.3,3.75894127]
[1748532252401,3.97,2660.5,2660.4,3.75882211]
[1748532253292,3.97,2660.5,2659.9,1.88242105]
[1748532253588,3.97,2660.5,2660.3,3.75897376]
[1748532253794,3.97,2660.5,2660.4,3.75883325]
[1748532254610,0.9859,2660.7,2660.5,3.75866545]
[1748532254797,3.97,2660.6,2660.3,3.75889808]
[1748532254998,3.97,2660.5,2660.4,3.7587712]